bitfinex-derivatives/quotes_ETHF0:USTF0_20250803
["timestamp","ask_amount","ask_price","bid_price","bid_amount"]
[1754242573669,3.2078,3489.7,3489.4,0.8186]
[1754242573873,3.2078,3489.7,3489.6,1.9976]
[1754242574474,4.9306,3489.7,3489.6,1.9976]
[1754242574679,5.2571,3489.7,3489.6,1.9976]
[1754242579384,2.0493,3489.7,3489.6,1.9976]
[1754242579981,2.0493,3489.7,3489.0,8.57433026]
[1754242579982,3.29587,3490.0,3489.9,1.9976]
[1754242580182,3.62237,3490.0,3489.9,1.9976]
[1754242581078,3.62237,3490.0,3489.9,0.4634]
[1754242581277,2.39977,3490.0,3489.7,0.3547]
[1754242581478,1.39979,3489.8,3489.7,1.5342]
[1754242581683,2.62239,3489.8,3489.7,1.5342]
[1754242581877,2.62239,3489.8,3489.7,1.9976]
[1754242582077,2.62239,3489.8,3489.7,0.3214]
[1754242582383,0.5748,3489.6,3489.5,1.9976]
[1754242582681,2.0493,3489.6,3489.5,1.9976]
[1754242583778,1.2226,3489.2,3489.0,3.6712]
[1754242583983,2.0493,3489.1,3489.0,4.4755]
[1754242584184,2.0493,3489.1,3489.0,5.2054]
[1754242584884,2.0493,3489.1,3489.0,1.9976]
[1754242589783,0.2483,3488.9,3488.8,3.68307465]
[1754242589985,0.7451,3488.8,3488.6,3.2078]
[1754242590190,2.0493,3488.8,3488.7,2.57087]
[1754242590583,1.2453,3488.8,3488.7,1.9976]
[1754242591290,0.5002,3488.8,3488.7,1.9976]
[1754242592282,1.7228,3488.8,3488.7,1.9976]
[1754242592482,2.0493,3488.8,3488.7,1.9976]
[1754242593486,0.8719,3488.8,3488.7,1.9976]
[1754242593884,0.2519,3488.8,3488.7,1.9976]
[1754242594083,0.2519,3489.2,3489.1,1.37749]
[1754242594295,0.2519,3489.2,3489.1,4.02397465]
[1754242594694,0.2519,3489.2,3489.1,5.21727465]
[1754242594893,2.62239,3489.8,3489.7,0.8043]
[1754242595091,2.62239,3489.8,3489.7,1.9976]
[1754242595494,2.62239,3489.8,3489.7,1.6224]
[1754242595893,1.6759,3489.4,3489.3,1.9976]
[1754242596093,2.0493,3489.4,3489.3,1.9976]
[1754242598495,4.15258,3489.9,3489.4,0.57316]
[1754242598692,5.2571,3489.9,3489.8,1.9976]
[1754242599895,0.8267,3489.7,3489.6,1.6224]
[1754242600101,2.0493,3489.7,3489.6,1.2677]
[1754242601102,2.0493,3489.7,3489.6,1.9976]
[1754242607399,2.0493,3489.7,3489.6,1.6224]
[1754242609106,2.0493,3489.7,3489.6,1.9885]
[1754242609912,1.2088,3489.2,3489.1,1.9389]
[1754242610415,1.2088,3489.2,3489.1,2.51211]
[1754242611204,0.8435,3489.2,3489.1,5.73178465]
[1754242611409,0.8194,3489.4,3489.1,5.73178465]
[1754242611612,1.1912,3489.4,3489.2,1.1677]
[1754242611803,1.9589,3489.4,3489.3,1.9389]
[1754242613007,3.4494,3489.9,3489.8,1.5869]
[1754242613209,3.4494,3489.9,3489.8,5.15857465]
[1754242613210,3.2078,3489.9,3489.8,5.15857465]
[1754242613504,1.0,3490.0,3489.9,1.9389]
[1754242616713,2.2088,3490.0,3489.9,1.9389]
[1754242616915,2.9589,3490.0,3489.9,1.9389]
[1754242618423,1.2416,3490.0,3489.9,1.9389]
[1754242618621,1.0,3490.0,3489.9,1.9389]
[1754242619120,0.5087,3490.0,3489.9,1.9389]
[1754242619417,0.4541,3490.6,3490.5,0.7712]
[1754242619613,0.3653,3490.7,3490.5,0.7712]
[1754242619614,0.3653,3490.7,3490.6,0.7181]
[1754242619816,1.9589,3490.7,3490.6,1.9389]
[1754242620817,1.9589,3490.7,3490.6,0.8262]
[1754242621819,1.9589,3490.7,3490.6,1.6419]
[1754242622016,0.2301,3490.3,3490.2,3.80997465]
[1754242622222,1.9589,3490.3,3490.2,0.4742]
[1754242622822,1.9589,3490.2,3490.1,1.6419]
[1754242623328,0.7677,3489.9,3489.8,1.79389]
[1754242623631,1.9589,3489.9,3489.8,2.51199]
[1754242624222,1.9589,3489.9,3489.8,1.4893]
[1754242624519,1.9589,3489.9,3489.8,1.9389]
[1754242629528,1.9589,3489.9,3489.7,3.7809]
[1754242629529,1.133,3489.8,3489.7,3.682]
[1754242629734,1.9589,3489.8,3489.7,5.1467]
[1754242629934,1.9589,3489.8,3489.7,3.4437]
[1754242630235,1.9589,3489.5,3489.4,2.56738682]
[1754242630733,1.9589,3489.4,3489.3,3.75968682]
[1754242630937,1.9589,3489.4,3489.3,4.50628682]
[1754242631230,1.9589,3489.4,3489.3,1.9389]
[1754242632634,1.9589,3489.4,3489.3,0.4742]
[1754242632836,1.9589,3489.4,3489.3,0.8262]
[1754242633228,1.9589,3489.4,3489.3,1.6419]
[1754242633426,1.9589,3489.4,3489.3,1.9389]
[1754242634428,1.9589,3489.4,3489.2,3.2078]
[1754242634637,0.7677,3489.4,3489.3,0.2276]
[1754242634835,0.7677,3489.4,3489.3,1.6468]
[1754242635223,1.9457,3489.4,3489.3,0.8165]
[1754242635528,1.9457,3489.4,3489.3,1.6468]
[1754242636833,1.9457,3489.4,3489.3,1.9459]
[1754242638630,0.9917,3489.7,3489.6,0.7623]
[1754242638837,1.9482,3489.7,3489.6,1.9459]
[1754242640925,3.2078,3490.2,3489.7,0.57311]
[1754242640926,0.4584,3490.1,3489.7,0.57311]
[1754242641123,1.9482,3490.1,3490.0,0.4632]
[1754242641326,1.9482,3490.1,3490.0,1.1681]
[1754242641928,1.9482,3490.1,3490.0,0.8165]
[1754242642231,1.9482,3490.1,3490.0,0.4632]
[1754242642432,1.9482,3490.1,3490.0,0.8165]
[1754242642631,1.9482,3490.1,3490.0,0.4632]
[1754242642832,1.9482,3490.1,3490.0,0.8165]
[1754242643134,1.9482,3490.1,3490.0,1.1681]
[1754242643534,0.7702,3489.9,3489.6,0.57312]
[1754242643733,0.4637,3489.7,3489.6,1.63102]
[1754242643933,1.9482,3489.7,3489.6,1.9459]
[1754242646534,4.90463,3490.2,3490.1,0.8165]
[1754242646831,4.4364,3490.2,3490.1,5.16557465]
[1754242647031,5.156,3490.2,3490.1,5.16557465]
[1754242647838,3.978,3490.2,3490.1,5.16557465]
[1754242648837,3.2078,3490.2,3490.1,5.16557465]
[1754242649227,0.8244,3490.4,3490.1,5.16557465]
[1754242649436,1.9482,3490.3,3490.2,1.9459]
[1754242653141,1.5946,3489.7,3489.6,2.56738682]
[1754242653336,0.7702,3489.7,3489.6,0.4632]
[1754242653641,1.9482,3489.7,3489.6,1.6468]
[1754242653940,1.9482,3489.7,3489.6,0.8165]
[1754242654337,2.52132,3489.7,3489.4,0.8303]
[1754242654541,2.52132,3489.7,3489.4,0.8165]
[1754242654542,1.9482,3489.5,3489.4,0.8165]
[1754242654942,1.9482,3489.5,3489.4,1.6468]
[1754242655143,1.9482,3489.5,3489.4,1.9459]
[1754242656945,1.9482,3489.5,3489.4,0.8165]
[1754242657139,1.34335,3489.5,3489.2,2.56738682]
[1754242657341,1.9482,3489.3,3489.2,1.6468]
[1754242659944,0.7196,3489.2,3489.0,2.56738682]
[1754242660239,1.9482,3489.0,3488.8,2.56738682]
[1754242660439,1.34344,3488.9,3488.7,2.56738682]
[1754242660636,0.7702,3488.8,3488.5,2.56738682]
[1754242660839,1.9482,3488.7,3488.6,1.6468]
[1754242661145,1.9482,3488.7,3488.6,1.9459]
[1754242666054,1.5946,3488.7,3488.6,1.9459]
[1754242666251,1.3577,3488.7,3488.6,1.9459]
[1754242668152,1.6949,3488.7,3488.6,1.9459]
[1754242668551,1.9194,3488.7,3488.6,1.9459]
[1754242671659,0.57322,3489.1,3488.6,2.51919]
[1754242671859,1.8877,3488.8,3488.7,1.941]
[1754242677857,0.2245,3489.1,3489.0,0.2234]
[1754242678163,1.8877,3489.1,3489.0,5.16067465]
[1754242679263,1.8877,3489.4,3489.3,1.941]
[1754242679458,1.8877,3489.4,3489.3,5.16067465]
[1754242680563,1.5505,3489.4,3489.3,5.16067465]
[1754242680752,0.57305,3490.1,3489.6,0.57312]
[1754242680957,1.8877,3490.1,3490.0,0.7522]
[1754242681367,3.2078,3490.2,3490.1,2.02914]
[1754242681561,0.57304,3490.1,3489.9,3.2078]
[1754242681861,1.8877,3490.0,3489.9,3.2078]
[1754242682065,1.8877,3490.0,3489.9,4.6639]
[1754242682364,1.8877,3490.0,3489.9,8.36847465]
[1754242682764,1.8877,3490.0,3489.9,5.1488]
[1754242688560,1.8877,3490.0,3489.9,8.36847465]
[1754242688760,1.5505,3490.0,3489.9,8.36847465]
[1754242689268,1.8877,3490.0,3489.9,8.36847465]
[1754242689768,1.2108,3490.0,3489.9,8.36847465]
[1754242689970,0.9863,3490.0,3489.9,8.36847465]
[1754242690263,1.2108,3490.6,3490.5,0.7522]
[1754242690468,1.8877,3490.6,3490.5,1.941]
[1754242690766,1.8877,3490.0,3489.9,8.59274465]
[1754242691167,1.8877,3490.0,3489.9,7.53477465]
[1754242691465,1.8877,3490.0,3489.9,8.36847465]
[1754242693163,1.5505,3490.0,3489.9,8.36847465]
[1754242693466,1.5505,3490.2,3490.1,0.7522]
[1754242693769,1.8877,3490.2,3490.1,1.941]
[1754242694669,0.57297,3490.6,3490.1,1.1888]
[1754242694670,0.8323,3490.6,3490.1,1.1888]
[1754242694971,1.9665,3490.6,3490.5,1.9596]
[1754242696772,1.9665,3490.6,3490.5,0.8022]
[1754242698173,1.9665,3490.6,3490.5,1.6339]
[1754242700073,0.4574,3490.3,3490.2,0.57302]
[1754242700274,1.9665,3490.3,3490.2,1.97732]
[1754242700474,1.9665,3490.2,3490.1,1.4834]
[1754242700673,1.9665,3490.2,3490.1,1.9596]
[1754242703573,0.2371,3490.0,3489.9,3.2078]
[1754242703768,1.9665,3490.0,3489.9,5.1674]
[1754242710181,1.2583,3489.9,3489.8,22.14738682]
[1754242710384,1.9665,3489.9,3489.8,22.14738682]
[1754242710684,1.9665,3489.9,3489.8,19.8019]
[1754242710881,1.9665,3489.9,3489.8,20.1526]
[1754242711082,1.9665,3489.6,3489.5,5.77518682]
[1754242711286,1.9665,3489.6,3489.5,3.2078]
[1754242714882,0.7828,3489.6,3489.3,0.57317]
[1754242715082,1.1342,3489.5,3489.4,1.6339]
[1754242715286,1.9665,3489.5,3489.4,1.6339]
[1754242716384,0.4574,3489.9,3489.8,0.8022]
[1754242716591,1.6151,3489.9,3489.8,1.9596]
[1754242716790,1.9665,3489.9,3489.8,1.9596]
[1754242718290,1.3948,3489.9,3489.8,1.9596]
[1754242719689,1.9665,3489.9,3489.8,1.9596]
[1754242723387,3.78078,3490.5,3490.3,1.9596]
[1754242723585,1.9665,3490.4,3490.3,1.9596]
[1754242724585,2.52371,3490.3,3490.2,1.2673]
[1754242724779,2.52371,3490.3,3490.2,1.9]
[1754242724979,1.9507,3490.3,3490.2,1.9]
[1754242726489,1.3623,3490.4,3490.3,1.9]
[1754242726693,1.9507,3490.4,3490.3,1.9]
[1754242727187,0.3287,3490.6,3490.3,0.7477]
[1754242727393,1.9507,3490.5,3490.4,1.9]
[1754242730588,0.7834,3490.3,3490.2,0.7798]
[1754242730887,1.9507,3490.0,3489.9,3.00468682]
[1754242731196,1.5967,3490.0,3489.9,4.46738682]
[1754242731383,0.57302,3490.3,3489.9,3.31508682]
[1754242731592,2.03912,3490.3,3490.2,1.9]
[1754242731994,2.52372,3490.3,3490.2,1.9]
[1754242733989,1.9507,3490.3,3490.2,1.9]
[1754242735594,3.2078,3490.7,3490.2,1.9]
[1754242735795,3.2078,3491.1,3491.0,0.7477]
[1754242736002,3.2078,3491.1,3491.0,1.9]
[1754242736494,5.1585,3491.1,3491.0,1.9]
[1754242737189,0.7834,3490.8,3490.7,1.5575]
[1754242737390,1.9507,3490.8,3490.7,1.5575]
[1754242737798,1.5967,3490.8,3490.7,1.9]
[1754242737999,1.9507,3490.8,3490.7,1.9]
[1754242740694,2.03897,3491.2,3491.1,1.4125]
[1754242740899,2.52357,3491.2,3491.1,1.9]
[1754242741995,0.57291,3491.0,3490.7,3.2078]
[1754242742293,1.9507,3490.8,3490.7,3.2078]
[1754242742798,0.7834,3490.8,3490.3,3.2078]
[1754242742995,1.9507,3490.4,3490.3,3.2078]
[1754242743188,1.7163,3490.3,3490.2,1.019]
[1754242743391,1.9507,3490.3,3490.2,1.9]
[1754242743799,1.9507,3490.3,3490.2,1.0902]
[1754242744001,1.9507,3490.1,3490.0,2.56738682]
[1754242744296,1.9507,3490.1,3490.0,1.2673]
[1754242744505,1.9507,3490.1,3490.0,1.9]
[1754242746001,1.9507,3490.1,3490.0,0.7798]
[1754242747194,0.57306,3490.0,3489.7,2.56738682]
[1754242747398,1.9507,3489.7,3489.6,2.56738682]
[1754242747594,1.9507,3489.7,3489.6,4.12488682]
[1754242747800,1.9507,3489.7,3489.6,1.9]
[1754242749005,1.7163,3490.0,3489.9,0.4373]
[1754242749201,1.9507,3490.0,3489.9,1.9]
[1754242751500,4.65200465,3490.8,3489.6,1.9]
[1754242751501,1.9507,3489.7,3489.6,1.9]
[1754242751702,1.9507,3489.7,3489.6,0.4373]
[1754242752800,0.7834,3489.5,3489.4,3.6451]
[1754242753102,1.9507,3489.5,3489.4,3.9876]
[1754242753406,1.9507,3489.3,3489.0,7.17840682]
[1754242753703,0.7834,3489.3,3489.2,1.0642]
[1754242753904,0.7834,3489.3,3489.2,1.8244]
[1754242754106,1.4434,3489.3,3489.2,1.8244]
[1754242754308,1.9112,3489.3,3489.2,1.8244]
[1754242755408,1.9112,3489.3,3489.2,0.4373]
[1754242756110,1.9112,3489.3,3489.2,1.5164]
[1754242756518,1.9112,3489.3,3489.2,1.8244]
[1754242757013,3.2078,3489.9,3489.2,1.8244]
[1754242757014,0.57313,3489.6,3489.2,1.8244]
[1754242757201,2.46673,3489.6,3489.5,0.454]
[1754242758011,2.46673,3489.6,3489.5,0.762]
[1754242758212,2.46673,3489.6,3489.5,1.8411]
[1754242758415,3.21967465,3489.6,3488.8,2.56738682]
[1754242758608,1.8936,3489.0,3488.9,1.8411]
[1754242760511,0.57324,3488.9,3488.6,3.2078]
[1754242760718,1.8936,3488.7,3488.6,5.0489]
[1754242760916,1.2336,3488.7,3488.6,5.0489]
[1754242761112,0.7658,3488.7,3488.6,5.0489]
[1754242761314,0.318,3488.7,3488.6,5.0489]
[1754242761609,3.2078,3489.4,3488.6,5.0489]
[1754242761610,5.67456,3489.4,3489.3,0.762]
[1754242761819,2.46676,3489.4,3489.3,1.8411]
[1754242762211,0.57314,3489.6,3489.3,1.5222]
[1754242762514,1.2336,3489.5,3489.4,1.8411]
[1754242762814,1.8936,3489.5,3489.4,1.8411]
[1754242771116,0.7658,3489.2,3489.1,0.762]
[1754242771315,0.7658,3489.2,3489.0,3.2078]
[1754242771316,1.999,3489.2,3489.0,3.2078]
[1754242771520,1.8936,3489.1,3489.0,4.7409]
[1754242771816,1.8936,3489.1,3489.0,5.0489]
[1754242774722,1.8936,3489.1,3489.0,3.2078]
[1754242774923,0.7658,3488.7,3488.6,3.6618]
[1754242775121,1.8936,3488.7,3488.6,1.5331]
[1754242775420,0.7658,3488.4,3488.3,3.96528682]
[1754242775620,1.8936,3488.4,3488.3,4.40848682]
[1754242776818,0.3194,3488.7,3488.3,7.62816147]
[1754242777019,1.3224,3488.6,3488.5,0.762]
[1754242777218,1.8936,3488.6,3488.5,1.8411]
[1754242778116,1.8936,3488.6,3488.5,0.7729]
[1754242778322,1.8936,3488.6,3488.5,1.8411]
[1754242782326,0.2306,3488.3,3488.2,2.56738682]
[1754242782519,1.8936,3488.1,3488.0,2.56738682]
[1754242782720,1.5756,3488.0,3487.9,2.56738682]
[1754242782920,0.7658,3488.0,3487.9,2.56738682]
[1754242783124,1.8936,3488.0,3487.9,2.56738682]
[1754242783517,0.7658,3487.8,3487.7,3.34028682]
[1754242783720,1.8734,3487.8,3487.7,3.34028682]
[1754242783929,1.8734,3487.8,3487.7,0.7729]
[1754242784825,1.8734,3487.8,3487.7,1.8727]
[1754242789958,3.2078,3488.4,3488.3,0.2086]
[1754242790129,1.8373,3488.4,3488.3,1.8531]
[1754242791535,1.30303,3488.4,3487.9,3.7812]
[1754242791732,1.30303,3488.4,3488.2,0.2086]
[1754242791733,1.8373,3488.3,3488.2,0.2086]
[1754242791928,1.8373,3488.3,3488.2,0.7533]
[1754242792138,1.8373,3488.3,3488.2,1.5534]
[1754242792333,1.8373,3488.3,3488.2,1.8531]
[1754242792936,1.8373,3488.3,3488.2,0.4234]
[1754242793435,0.5734,3487.9,3487.6,0.57345]
[1754242793737,1.8373,3487.7,3487.6,1.3907]
[1754242794040,1.8373,3487.7,3487.6,1.8531]
[1754242798537,1.0621,3487.7,3487.6,5.07277465]
[1754242798743,1.8373,3488.0,3487.9,1.3907]
[1754242799042,1.8373,3488.0,3487.9,1.8531]
[1754242799242,1.5148,3488.0,3487.9,1.8531]
[1754242799736,1.8373,3488.0,3487.9,1.8531]
[1754242801337,0.6549,3487.6,3487.5,1.24106]
[1754242801547,1.8373,3487.6,3487.5,2.42656]
[1754242801734,1.5148,3487.6,3487.5,2.42656]
[1754242802037,0.8432,3487.8,3487.7,1.44963]
[1754242802344,1.2959,3487.8,3487.7,2.42653]
[1754242803241,0.5108,3487.8,3487.7,0.2086]
[1754242803438,1.8373,3487.8,3487.7,1.8531]
[1754242807744,2.41072,3487.8,3487.4,6.34866682]
[1754242807939,1.8373,3487.7,3487.6,1.5534]
[1754242808133,1.8373,3487.7,3487.6,0.7533]
[1754242808536,1.3231,3487.9,3487.8,0.2086]
[1754242808736,1.8373,3487.9,3487.8,0.7231]
[1754242808942,1.8373,3487.9,3487.8,1.8531]
[1754242810352,0.7297,3487.6,3487.5,1.8531]
[1754242810545,1.1824,3487.6,3487.5,1.8531]
[1754242810745,1.8373,3487.6,3487.5,1.8531]
[1754242811343,1.8373,3487.6,3487.5,4.42048682]
[1754242811543,1.8373,3487.6,3487.5,2.56738682]
[1754242811738,1.8373,3487.6,3487.1,3.58558445]
[1754242811739,0.2189,3487.3,3487.2,3.23498682]
[1754242811943,1.8373,3487.3,3487.2,4.42048682]
[1754242812448,1.8373,3487.3,3487.2,1.8531]
[1754242812839,1.8373,3487.3,3487.2,4.43090601]
[1754242813445,1.8373,3487.3,3487.2,1.8531]
[1754242813751,0.7886,3487.5,3487.2,0.7231]
[1754242814048,1.8299,3487.4,3487.3,4.41618396]
[1754242814250,1.8299,3487.4,3487.3,1.838]
[1754242816245,0.57342,3487.8,3487.3,1.838]
[1754242816447,1.71942,3487.8,3487.7,1.838]
[1754242816651,2.40332,3487.8,3487.7,1.838]
[1754242817047,1.1162,3488.3,3488.0,0.4309]
[1754242817349,0.2114,3488.3,3488.2,1.838]
[1754242817547,0.7886,3488.8,3488.5,1.838]
[1754242817854,1.03124682,3489.5,3488.2,1.3234]
[1754242817855,0.7137,3488.3,3488.2,1.3234]
[1754242818150,1.8299,3488.3,3488.2,1.5292]
[1754242818351,1.8299,3488.3,3488.2,1.838]
[1754242819253,0.57333,3488.4,3487.7,26.58290465]
[1754242819254,1.8299,3488.0,3487.9,1.5262]
[1754242819853,1.8299,3488.0,3487.9,1.838]
[1754242820755,1.8299,3488.0,3487.9,1.86335011]
[1754242821760,0.9947,3488.6,3488.3,0.449]
[1754242821960,2.40319,3488.6,3488.5,1.838]
[1754242822350,2.40319,3488.6,3488.5,0.7684]
[1754242822558,2.40324,3488.3,3488.2,1.838]
[1754242822860,1.8299,3488.3,3488.2,1.87921132]
[1754242823653,0.4778,3488.5,3488.3,1.0983]
[1754242823859,1.5023,3488.5,3488.4,0.78091132]
[1754242824051,0.7137,3488.5,3488.4,1.87921132]
[1754242824853,1.8299,3488.5,3488.4,1.87921132]
[1754242826655,1.8299,3488.5,3488.4,0.80961132]
[1754242826859,1.8299,3488.5,3488.4,0.47211132]
[1754242827458,1.8299,3488.5,3488.4,0.24701132]
[1754242827763,1.8299,3488.5,3488.4,0.27027849]
[1754242828665,1.8299,3488.5,3488.4,0.28617141]
[1754242829760,0.5023,3487.8,3487.6,0.3118]
[1754242829958,1.5023,3487.6,3487.5,3.23298396]
[1754242830262,3.2078,3488.2,3487.4,1.838]
[1754242830263,1.8299,3487.5,3487.4,1.838]
[1754242831155,1.5023,3487.5,3487.4,1.838]
[1754242831351,0.5076,3487.5,3487.4,1.838]
[1754242831557,1.2962,3487.7,3487.6,0.7397]
[1754242831757,1.1162,3488.0,3487.7,0.57344]
[1754242831956,0.5076,3488.1,3488.0,0.5146]
[1754242832257,0.5076,3488.1,3488.0,3.95937465]
[1754242832451,3.6253,3488.6,3488.5,0.4309]
[1754242832656,3.6253,3488.6,3488.5,1.0772]
[1754242832657,4.80559,3488.6,3488.5,1.0772]
[1754242832855,4.80559,3488.6,3488.5,0.7684]
[1754242833067,5.61099,3488.6,3488.5,0.7684]
[1754242833861,5.61099,3488.6,3488.5,0.2058]
[1754242835068,5.61099,3488.6,3488.5,0.21591422]
[1754242836658,5.61099,3488.6,3488.5,0.2058]
[1754242836865,5.61099,3488.6,3488.5,0.22097133]
[1754242837170,5.61099,3488.6,3488.5,0.01517133]
[1754242837761,5.61099,3488.6,3487.7,3.2078]
[1754242837762,1.8299,3487.8,3487.7,1.0772]
[1754242837960,1.8299,3487.8,3487.7,1.838]
[1754242839056,1.1915,3487.8,3487.7,1.84811422]
[1754242839261,0.7137,3487.8,3487.7,1.84811422]
[1754242839666,1.5023,3487.8,3487.7,1.84811422]
[1754242839876,1.8299,3487.8,3487.7,1.84811422]
[1754242840169,1.8299,3487.8,3487.7,1.86198876]
[1754242841065,0.5076,3487.8,3487.7,1.86198876]
[1754242841269,3.2078,3488.6,3487.7,1.86198876]
[1754242841270,2.40322,3488.4,3488.3,1.1917]
[1754242841461,2.40322,3488.4,3488.3,1.838]
[1754242842074,1.86951,3488.5,3488.4,1.838]
[1754242842259,0.2114,3488.5,3488.4,1.86198876]
[1754242842462,3.2078,3488.6,3488.5,1.313]
[1754242842662,3.2078,3488.6,3488.5,5.63097465]
[1754242843370,3.2078,3488.6,3488.5,5.65496341]
[1754242843769,0.5156,3488.6,3488.5,2.43528876]
[1754242844071,0.818,3488.8,3488.5,5.64308876]
[1754242844267,1.3336,3488.8,3488.7,0.7163]
[1754242844469,1.3336,3488.8,3488.7,1.8182]
[1754242845163,1.8687,3488.8,3488.7,1.8182]
[1754242845469,1.8687,3488.8,3488.7,1.06278876]
[1754242845666,1.8687,3488.8,3488.7,1.84218876]
[1754242845869,1.8687,3488.8,3488.7,1.86554685]
[1754242846061,4.3521,3489.1,3488.8,1.1019]
[1754242846365,3.2078,3489.6,3489.0,3.9241]
[1754242846673,5.0765,3489.6,3489.5,1.8182]
[1754242846870,5.0765,3489.6,3489.5,1.86554685]
[1754242847066,4.5362,3489.6,3489.5,1.86554685]
[1754242847367,3.7234,3489.6,3489.5,2.43868685]
[1754242847567,1.62375,3490.1,3490.0,0.7163]
[1754242847768,1.95525,3490.1,3490.0,1.8182]
[1754242848268,2.44175,3490.1,3490.0,1.8182]
[1754242848463,2.44175,3490.1,3490.0,1.88134885]
[1754242848665,1.8687,3490.1,3490.0,1.88134885]
[1754242849569,1.8687,3490.1,3490.0,1.10194885]
[1754242849774,1.8687,3490.1,3490.0,0.46574885]
[1754242850676,1.8687,3490.1,3490.0,0.06314885]
[1754242853575,1.8687,3490.1,3488.9,0.57323]
[1754242853576,1.84965478,3489.3,3489.2,1.8182]
[1754242853769,1.19185478,3489.3,3489.2,1.8182]
[1754242853967,0.49655478,3489.3,3489.2,1.8182]
[1754242854370,1.0507,3489.5,3489.4,0.7163]
[1754242854578,1.0507,3489.5,3489.4,1.8182]
[1754242854579,1.5372,3489.5,3489.4,1.8182]
[1754242854775,1.5372,3489.5,3489.4,1.83724522]
[1754242855182,1.8687,3489.5,3489.4,1.83724522]
[1754242855476,1.8687,3489.5,3489.4,0.01904522]
[1754242860477,1.26237004,3489.0,3488.9,1.5123]
[1754242860772,2.40667004,3489.0,3488.9,1.8182]
[1754242860973,2.40667004,3489.0,3488.9,0.01620474]
[1754242861172,5.61447004,3489.0,3488.9,0.01620474]
[1754242861574,5.61447004,3489.0,3488.9,0.74130474]
[1754242862378,5.61447004,3489.0,3488.9,1.83440474]
[1754242862580,5.61447004,3489.0,3488.9,1.84115535]
[1754242864474,5.61447004,3489.0,3488.9,0.02295535]
[1754242865477,10.97852166,3489.0,3488.9,0.02295535]
[1754242865676,10.97852166,3489.0,3488.1,3.2078]
[1754242865677,1.8687,3488.2,3488.1,3.2078]
[1754242865877,1.42047,3488.1,3488.0,0.838]
[1754242866088,2.44207,3488.1,3488.0,1.8182]
[1754242866582,3.2078,3488.2,3488.1,0.6284]
[1754242866789,3.2078,3488.2,3488.1,1.8182]
[1754242867576,0.57333,3488.4,3488.1,0.7163]
[1754242867783,0.5156,3488.3,3488.2,1.8182]
[1754242868283,0.5156,3488.3,3488.2,1.84153421]
[1754242868483,1.0021,3488.3,3488.2,1.84153421]
[1754242868684,1.2109,3488.3,3488.2,1.84153421]
[1754242868985,1.5372,3488.3,3488.2,1.84153421]
[1754242869289,1.5372,3488.3,3488.2,1.85736009]
[1754242871389,1.8687,3488.3,3488.2,1.85736009]
[1754242871592,0.57333,3488.4,3488.2,0.75546009]
[1754242871789,0.57333,3488.4,3488.3,1.8182]
[1754242871984,1.08893,3488.4,3488.3,1.8182]
[1754242872292,2.44203,3488.4,3488.3,1.85736009]
[1754242874495,2.11053,3488.4,3488.3,1.85736009]
[1754242874787,2.39963,3488.4,3488.3,1.85736009]
[1754242879696,2.37945,3487.7,3487.6,1.8]
[1754242880693,2.37945,3487.7,3487.6,1.337]
[1754242880996,2.37945,3487.7,3487.6,1.8]
[1754242881998,2.37949,3487.4,3487.3,1.8]
[1754242885197,2.37954,3487.1,3487.0,4.2334]
[1754242885398,2.37954,3487.1,3487.0,1.4886]
[1754242885794,2.37954,3487.1,3487.0,1.8]
[1754242888293,1.806,3487.0,3486.9,2.06512088]
[1754242888496,1.806,3487.0,3486.9,2.83242088]
[1754242889918,0.9886,3487.2,3487.1,0.7258]
[1754242890202,0.9886,3487.2,3487.1,1.8]
[1754242890893,1.3114,3487.2,3487.1,1.8]
[1754242891495,3.78124,3487.7,3487.5,0.2031]
[1754242891695,3.2078,3487.7,3487.6,0.8143]
[1754242891903,3.2078,3487.7,3487.6,1.8]
[1754242892104,4.2006,3487.7,3487.6,1.8]
[1754242892293,5.0138,3487.7,3487.6,1.8]
[1754242892692,5.0138,3487.7,3487.6,1.81160653]
[1754242893091,4.717,3487.7,3487.6,1.81160653]
[1754242893294,3.9324,3487.7,3487.6,1.81160653]
[1754242893500,3.9324,3487.7,3487.6,1.81920757]
[1754242893706,5.0138,3487.7,3487.6,1.81920757]
[1754242893903,5.0138,3487.7,3487.6,0.23050757]
[1754242894105,5.0138,3487.7,3487.6,0.23810861]
[1754242894802,5.0138,3487.7,3487.6,0.44120861]
[1754242895105,5.0138,3487.7,3487.6,0.02680861]
[1754242901609,5.0138,3487.7,3487.6,1.82680861]
[1754242902209,5.0138,3487.7,3487.6,1.85013007]
[1754242902511,1.65481,3487.9,3487.6,1.85013007]
[1754242902711,2.37941,3487.9,3487.8,0.7258]
[1754242902913,1.91341,3487.9,3487.8,1.2926]
[1754242903213,1.85071715,3487.4,3487.3,1.8]
[1754242903510,2.31671715,3487.4,3487.3,1.8]
[1754242904814,0.57354,3487.1,3487.0,1.8008]
[1754242905112,3.22165259,3487.6,3487.1,1.8008]
[1754242905113,1.8262,3487.2,3487.1,1.8008]
[1754242905310,1.21557,3487.5,3487.4,0.7321]
[1754242905614,1.87877,3487.5,3487.4,1.8008]
[1754242905812,2.18337,3487.5,3487.4,1.8008]
[1754242906012,2.39967,3487.5,3487.4,1.8008]
[1754242906707,0.57353,3487.2,3487.1,1.8008]
[1754242906913,2.39973,3487.2,3487.1,1.8008]
[1754242907607,1.2884,3487.2,3487.1,1.8008]
[1754242908816,0.7389,3487.0,3486.9,1.45322088]
[1754242909011,1.8262,3487.0,3486.9,2.52192088]